fUSD/lending_fUSD_20250505
["ID","MTS","AMOUNT","RATE_DAILY","PERIOD"]
[359937486,1746435047240,-450.0,0.00019999,2]
[359937487,1746435047250,-530.76,0.00019999,2]
[359937488,1746435047259,-466.79,0.00019999,2]
[359937489,1746435047268,-523.37,0.00019999,2]
[359937490,1746435047277,-450.0,0.00019999,2]
[359937491,1746435047286,-450.0,0.00019999,2]
[359937492,1746435047296,-450.0,0.00019999,2]
[359937493,1746435047306,-450.0,0.00019999,2]
[359937494,1746435047315,-171.48,0.00019999,2]
[359937495,1746435047325,-450.0,0.00019999,2]
[359937496,1746435047335,-512.05,0.00019999,2]
[359937497,1746435047344,-473.65,0.00019999,2]
[359937498,1746435047355,-500.0,0.00019999,2]
[359937499,1746435047366,-450.0,0.00019999,2]
[359937500,1746435047375,-450.0,0.00019999,2]
[359937501,1746435047384,-450.0,0.00019999,2]
[359937502,1746435047394,-450.0,0.00019999,2]
[359937503,1746435047403,-450.0,0.00019999,2]
[359937504,1746435047413,-241.92,0.00019999,2]
[359937505,1746435047422,-450.0,0.00019999,2]
[359937506,1746435047431,-450.0,0.00019999,2]
[359937507,1746435047439,-450.0,0.00019999,2]
[359937508,1746435047449,-450.0,0.00019999,2]
[359937509,1746435047458,-450.0,0.00019999,2]
[359937510,1746435047467,-535.29,0.00019999,2]
[359937511,1746435047478,-450.0,0.00019999,2]
[359937512,1746435047488,-500.0,0.00019999,2]
[359937513,1746435047498,-500.0,0.00019999,2]
[359937514,1746435047507,-500.0,0.00019999,2]
[359937515,1746435047517,-512.61,0.00019999,2]
[359937516,1746435047526,-450.0,0.00019999,2]
[359937517,1746435047535,-266.95,0.00019999,2]
[359937518,1746435047544,-458.9,0.00019999,2]
[359937519,1746435047553,-450.0,0.00019999,2]
[359937520,1746435047564,-450.0,0.00019999,2]
[359937521,1746435047574,-450.0,0.00019999,2]
[359937522,1746435047583,-450.0,0.00019999,2]
[359937523,1746435047593,-150.0,0.00019999,2]
[359937524,1746435047602,-317.64,0.00019999,2]
[359937525,1746435047611,-450.0,0.00019999,2]
[359937526,1746435047620,-450.0,0.00019999,2]
[359937527,1746435047630,-450.0,0.00019999,2]
[359937528,1746435047639,-450.0,0.00019999,2]
[359937529,1746435047648,-450.0,0.00019999,2]
[359937530,1746435047657,-450.0,0.00019999,2]
[359937531,1746435047666,-450.0,0.00019999,2]
[359937532,1746435047676,-165.3,0.00019999,2]
[359937533,1746435047685,-150.0,0.00019999,2]
[359937534,1746435047694,-450.0,0.00019999,2]
[359937535,1746435047704,-150.0,0.00019999,2]
[359937536,1746435047713,-150.0,0.00019999,2]
[359937537,1746435047723,-450.0,0.00019999,2]
[359937538,1746435047732,-268.81,0.00019999,2]
[359937539,1746435047741,-516.14,0.00019999,2]
[359937540,1746435047751,-501.05114322,0.00019999,2]
[359937541,1746435047759,-450.0,0.00019999,2]
[359937542,1746435047769,-450.0,0.00019999,2]
[359937543,1746435047779,-450.0,0.00019999,2]
[359937544,1746435047789,-450.0,0.00019999,2]
[359937545,1746435047798,-450.0,0.00019999,2]
[359937546,1746435047808,-450.0,0.00019999,2]
[359937547,1746435047817,-450.0,0.00019999,2]
[359937548,1746435047826,-237.73,0.00019999,2]
[359937549,1746435047836,-462.41,0.00019999,2]
[359937550,1746435047845,-450.0,0.00019999,2]
[359937551,1746435047854,-450.0,0.00019999,2]
[359937552,1746435047864,-450.0,0.00019999,2]
[359937553,1746435047873,-350.07,0.00019999,2]
[359937554,1746435047883,-450.0,0.00019999,2]
[359937555,1746435047892,-332.99,0.00019999,2]
[359937556,1746435047901,-240.97127942,0.00019999,2]
[359937557,1746435047911,-450.0,0.00019999,2]
[359937558,1746435047920,-450.0,0.00019999,2]
[359937559,1746435047930,-450.0,0.00019999,2]
[359937560,1746435047939,-450.0,0.00019999,2]
[359937561,1746435047949,-523.01,0.00019999,2]
[359937562,1746435047958,-450.0,0.00019999,2]
[359937563,1746435047968,-357.10844906,0.00019999,2]
[359937564,1746435047978,-450.0,0.00019999,2]
[359937565,1746435047987,-215.47,0.00019999,2]
[359937566,1746435047996,-450.0,0.00019999,2]
[359937567,1746435048006,-450.0,0.00019999,2]
[359937568,1746435048015,-242.39,0.00019999,2]
[359937569,1746435048025,-450.0,0.00019999,2]
[359937570,1746435048035,-450.0,0.00019999,2]
[359937571,1746435048045,-308.47,0.00019999,2]
[359937572,1746435048055,-450.0,0.00019999,2]
[359937573,1746435048064,-450.0,0.00019999,2]
[359937574,1746435048074,-450.0,0.00019999,2]
[359937575,1746435048083,-450.0,0.00019999,2]
[359937576,1746435048092,-450.0,0.00019999,2]
[359937577,1746435048101,-321.42,0.00019999,2]
[359937578,1746435048111,-484.416,0.00019999,2]
[359937579,1746435048120,-450.0,0.00019999,2]
[359937580,1746435048130,-450.0,0.00019999,2]
[359937581,1746435048140,-450.0,0.00019999,2]
[359937582,1746435048149,-450.0,0.00019999,2]
[359937583,1746435048160,-450.0,0.00019999,2]
[359937584,1746435048169,-450.0,0.00019999,2]
[359937585,1746435048178,-450.0,0.00019999,2]
[359937586,1746435048188,-450.0,0.00019999,2]
[359937587,1746435048197,-331.86,0.00019999,2]
[359937588,1746435048206,-450.0,0.00019999,2]
[359937589,1746435048216,-450.0,0.00019999,2]
[359937590,1746435048225,-450.0,0.00019999,2]
[359937591,1746435048234,-450.0,0.00019999,2]
[359937592,1746435048244,-450.0,0.00019999,2]
[359937593,1746435048253,-450.0,0.00019999,2]
[359937594,1746435048263,-450.0,0.00019999,2]
[359937595,1746435048274,-520.805872,0.00019999,2]
[359937596,1746435048285,-450.0,0.00019999,2]
[359937597,1746435048294,-450.0,0.00019999,2]
[359937598,1746435048304,-450.0,0.00019999,2]
[359937599,1746435048314,-498.65,0.00019999,2]
[359937600,1746435048323,-1069.64455029,0.00019999,2]
[359937601,1746435048333,-450.0,0.00019999,2]
[359937602,1746435048343,-450.0,0.00019999,2]
[359937603,1746435048353,-450.0,0.00019999,2]
[359937604,1746435048363,-450.0,0.00019999,2]
[359937605,1746435048372,-426.44000001,0.00019999,2]
[359937606,1746435048382,-150.0,0.00019999,2]
[359937607,1746435048391,-450.0,0.00019999,2]
[359937608,1746435048400,-186.85,0.00019999,2]
[359937609,1746435048409,-580.83,0.00019999,2]
[359937610,1746435048418,-450.0,0.00019999,2]
[359937611,1746435048427,-150.0,0.00019999,2]
[359937612,1746435048437,-150.0,0.00019999,2]
[359937613,1746435048447,-150.0,0.00019999,2]
[359937614,1746435048456,-150.0,0.00019999,2]
[359937615,1746435048466,-150.0,0.00019999,2]
[359937616,1746435048476,-450.0,0.00019999,2]
[359937617,1746435048642,-450.0,0.00019999,2]
[359937618,1746435048652,-450.0,0.00019999,2]
[359937619,1746435048662,-227.57,0.00019999,2]
[359937620,1746435048672,-9526.24699895,0.0002,2]
[359937621,1746435048687,-619.0064514,0.0002,2]
[359937622,1746435048701,-3313.9921522,0.0002,2]
[359937623,1746435048720,-400.0,0.0002,2]
[359937624,1746435048731,-481.696,0.0002,2]
[359937625,1746435143136,221.38,0.00017887,2]
[359937626,1746435654902,1098.0,0.000194,2]
[359937628,1746435905840,1298.80251897,0.00019,2]
[359937637,1746436189213,1000.0,0.00019215,2]
[359937646,1746436231614,-413.4455413,0.000196,2]
[359937647,1746436231625,-615.85558201,0.000196,2]
[359937648,1746436231666,-68.69887669,0.000196,2]
[359937649,1746436231675,-151.0,0.000196,2]
[359937650,1746436231684,-81.43518664,0.000197,2]
[359937651,1746436231696,-168.56481336,0.000197,2]
[359937652,1746436231706,-1098.0,0.000198,2]
[359937653,1746436231718,-377.27641445,0.00019882,2]
[359937661,1746436237541,-8213.23236106,0.00019882,2]
[359937662,1746436237597,-3909.49122449,0.00019882,2]
[359937663,1746436237607,-207.4,0.00019888,2]
[359937664,1746436237618,-12500.0,0.00019891,2]
[359937665,1746436237628,-1000.0,0.00019899,2]
[359937666,1746436237639,-1200.0,0.00019899,2]
[359937667,1746436237650,-345.36596282,0.000199,2]
[359937668,1746436237659,-318.39758278,0.000199,2]
[359937669,1746436237669,-9783.94356004,0.000199,2]
[359937670,1746436237682,-924.46014538,0.000199,2]
[359937671,1746436237692,-4851.46709096,0.000199,2]
[359937672,1746436237703,-370.34619113,0.000199,2]
[359937673,1746436237715,-582.68101033,0.000199,2]
[359937674,1746436237859,-12500.0,0.00019874,2]
[359937675,1746436237869,-6695.50570758,0.000199,2]
[359937676,1746436237879,-200.79647072,0.000199,2]
[359937677,1746436237888,-502.75955029,0.00019973,2]
[359937678,1746436237898,-500.0,0.00019973,2]
[359937679,1746436237908,-293.45115578,0.00019973,2]
[359937680,1746436237917,-500.0,0.00019973,2]
[359937681,1746436237927,-502.5100849,0.00019973,2]
[359937682,1746436237937,-500.0,0.00019973,2]
[359937683,1746436237947,-500.0,0.00019973,2]
[359937684,1746436237956,-500.0,0.00019973,2]
[359937685,1746436237966,-502.36719085,0.00019973,2]
[359937686,1746436237979,-151.0,0.00019988,2]
[359937687,1746436237989,-668.65185757,0.00019988,2]
[359937688,1746436237999,-474.95988855,0.0001999,2]
[359937690,1746436238008,-474.95988855,0.0001999,2]
[359937692,1746436238018,-474.95988855,0.0001999,2]
[359937693,1746436238028,-397.464,0.00019998,2]
[359937694,1746436238037,-706.90200659,0.00019998,2]
[359937695,1746436238048,-706.90200659,0.00019998,2]
[359937696,1746436238058,-706.90200659,0.00019998,2]
[359937697,1746436238068,-706.90200659,0.00019998,2]
[359937698,1746436238077,-706.90200659,0.00019998,2]
[359937699,1746436238087,-706.90200659,0.00019998,2]
[359937700,1746436238097,-706.90200659,0.00019998,2]
[359937701,1746436238107,-706.90200659,0.00019998,2]
[359937702,1746436238116,-706.90200659,0.00019998,2]
[359937703,1746436238126,-706.90200659,0.00019998,2]
[359937705,1746436238135,-706.90200659,0.00019998,2]
[359937706,1746436238144,-706.90200659,0.00019998,2]
[359937707,1746436238154,-706.90200659,0.00019998,2]
[359937708,1746436238163,-706.90200659,0.00019998,2]
[359937709,1746436238173,-706.90200659,0.00019998,2]
[359937710,1746436238182,-706.90200659,0.00019998,2]
[359937711,1746436238191,-706.90200659,0.00019998,2]
[359937712,1746436238201,-706.90200659,0.00019998,2]
[359937713,1746436238211,-706.90200659,0.00019998,2]
[359937714,1746436238221,-706.90200659,0.00019998,2]
[359937716,1746436238230,-706.90200659,0.00019998,2]
[359937717,1746436238239,-706.90200659,0.00019998,2]
[359937719,1746436238248,-706.90200659,0.00019998,2]
[359937721,1746436238257,-706.90200659,0.00019998,2]
[359937723,1746436238267,-706.90200659,0.00019998,2]
[359937725,1746436238277,-706.90200659,0.00019998,2]
[359937727,1746436238286,-706.90200659,0.00019998,2]
[359937729,1746436238295,-706.90200659,0.00019998,2]
[359937731,1746436238305,-706.90200659,0.00019998,2]
[359937733,1746436238315,-706.90200659,0.00019998,2]
[359937735,1746436238323,-706.90200659,0.00019998,2]
[359937737,1746436238333,-706.90200659,0.00019998,2]
[359937740,1746436238342,-706.90200659,0.00019998,2]
[359937742,1746436238352,-706.90200659,0.00019998,2]
[359937744,1746436238362,-706.90200659,0.00019998,2]
[359937746,1746436238371,-706.90200659,0.00019998,2]
[359937748,1746436238381,-706.90200659,0.00019998,2]
[359937750,1746436238391,-706.90200659,0.00019998,2]
[359937752,1746436238401,-706.90200659,0.00019998,2]
[359937754,1746436238410,-706.90200659,0.00019998,2]
[359937756,1746436238420,-706.90200659,0.00019998,2]
[359937758,1746436238429,-706.90200659,0.00019998,2]
[359937760,1746436238438,-706.90200659,0.00019998,2]
[359937762,1746436238448,-706.90200659,0.00019998,2]
[359937764,1746436238457,-706.90200659,0.00019998,2]
[359937766,1746436238466,-706.90200659,0.00019998,2]
[359937768,1746436238475,-706.90200659,0.00019998,2]
[359937770,1746436238484,-706.90200659,0.00019998,2]
[359937772,1746436238494,-706.90200659,0.00019998,2]
[359937774,1746436238503,-706.90200659,0.00019998,2]
[359937776,1746436238512,-706.90200659,0.00019998,2]
[359937778,1746436238522,-706.90200659,0.00019998,2]
[359937780,1746436238532,-706.90200659,0.00019998,2]
[359937782,1746436238542,-706.90200659,0.00019998,2]
[359937784,1746436238551,-706.90200659,0.00019998,2]
[359937786,1746436238561,-706.90200659,0.00019998,2]
[359937788,1746436238570,-626.0,0.00019999,2]
[359937790,1746436238579,-558.496662,0.00019999,2]
[359937792,1746436238589,-209.81844165,0.00019999,2]
[359937794,1746436238599,-453.16349657,0.00019999,2]
[359937796,1746436238608,-450.0,0.00019999,2]
[359937798,1746436238618,-450.0,0.00019999,2]
[359937800,1746436238627,-450.0,0.00019999,2]
[359937802,1746436238637,-450.0,0.00019999,2]
[359937804,1746436238647,-450.0,0.00019999,2]
[359937806,1746436238656,-450.0,0.00019999,2]
[359937808,1746436238667,-456.07,0.00019999,2]
[359937810,1746436238677,-450.97815959,0.00019999,2]
[359937812,1746436238686,-450.0,0.00019999,2]
[359937814,1746436238696,-509.5,0.00019999,2]
[359937816,1746436238705,-450.0,0.00019999,2]
[359937818,1746436238715,-450.0,0.00019999,2]
[359937820,1746436238724,-202.9,0.00019999,2]
[359937822,1746436238733,-452.36138482,0.00019999,2]
[359937823,1746436238742,-450.0,0.00019999,2]
[359937826,1746436238751,-519.2305752,0.00019999,2]
[359937828,1746436238761,-450.0,0.00019999,2]
[359937829,1746436238771,-450.0,0.00019999,2]
[359937831,1746436238780,-200.0,0.00019999,2]
[359937833,1746436238790,-200.0,0.00019999,2]
[359937846,1746436238959,-450.0,0.00019999,2]
[359937847,1746436238971,-483.52,0.00019999,2]
[359937848,1746436238983,-200.0,0.00019999,2]
[359937849,1746436238992,-200.0,0.00019999,2]
[359937850,1746436239002,-200.62377914,0.00019999,2]
[359937851,1746436239012,-206.5509899,0.00019999,2]
[359937852,1746436239022,-450.0,0.00019999,2]
[359937853,1746436239032,-461.87,0.00019999,2]
[359937854,1746436239043,-200.0,0.00019999,2]
[359937855,1746436239053,-450.0,0.00019999,2]
[359937856,1746436239062,-540.17,0.00019999,2]
[359937857,1746436239072,-165.52722831,0.00019999,2]
[359937858,1746436239082,-450.0,0.00019999,2]
[359937859,1746436239092,-221.78061618,0.00019999,2]
[359937860,1746436239102,-450.0,0.00019999,2]
[359937861,1746436239112,-450.0,0.00019999,2]
[359937862,1746436239121,-450.0,0.00019999,2]
[359937863,1746436239133,-464.45,0.00019999,2]
[359937864,1746436239143,-450.0,0.00019999,2]
[359937865,1746436239153,-450.0,0.00019999,2]
[359937866,1746436239163,-243.61,0.00019999,2]
[359937867,1746436239173,-450.0,0.00019999,2]
[359937868,1746436239182,-450.0,0.00019999,2]
[359937869,1746436239191,-450.0,0.00019999,2]
[359937870,1746436239202,-450.0,0.00019999,2]
[359937871,1746436239211,-450.0,0.00019999,2]
[359937872,1746436239221,-555.32,0.00019999,2]
[359937873,1746436239231,-450.0,0.00019999,2]
[359937874,1746436239240,-583.93,0.00019999,2]
[359937875,1746436239250,-450.0,0.00019999,2]
[359937876,1746436239259,-403.24517003,0.00019999,2]
[359937878,1746436239697,-46.75482997,0.00019999,2]
[359937879,1746436239707,-450.0,0.00019999,2]
[359937880,1746436239717,-450.0,0.00019999,2]
[359937881,1746436239726,-450.0,0.00019999,2]
[359937882,1746436239735,-450.0,0.00019999,2]
[359937883,1746436239745,-450.0,0.00019999,2]
[359937884,1746436239755,-450.0,0.00019999,2]
[359937885,1746436239764,-599.28,0.00019999,2]
[359937886,1746436239774,-221.27,0.00019999,2]
[359937887,1746436239783,-453.69434651,0.00019999,2]
[359937888,1746436239792,-450.0,0.00019999,2]
[359937889,1746436239802,-353.05082352,0.00019999,2]
[359937890,1746436239959,-96.94917648,0.00019999,2]
[359937891,1746436239968,-233.12,0.00019999,2]
[359937892,1746436239982,-124.8638735,0.00019999,2]
[359937893,1746436239993,-325.1361265,0.00019999,2]
[359937894,1746436240003,-450.0,0.00019999,2]
[359937895,1746436240013,-476.68236979,0.00019999,2]
[359937896,1746436240023,-450.0,0.00019999,2]
[359937897,1746436240032,-450.0,0.00019999,2]
[359937898,1746436240041,-450.0,0.00019999,2]
[359937899,1746436240052,-450.0,0.00019999,2]
[359937900,1746436240062,-427.06,0.00019999,2]
[359937901,1746436240072,-450.0,0.00019999,2]
[359937902,1746436240081,-450.0,0.00019999,2]
[359937903,1746436240090,-450.0,0.00019999,2]
[359937904,1746436240099,-450.0,0.00019999,2]
[359937905,1746436240109,-450.0,0.00019999,2]
[359937906,1746436240118,-450.0,0.00019999,2]
[359937907,1746436240127,-450.0,0.00019999,2]
[359937908,1746436240137,-450.0,0.00019999,2]
[359937909,1746436240146,-500.0,0.00019999,2]
[359937910,1746436240156,-200.25232924,0.00019999,2]
[359937911,1746436240165,-500.0,0.00019999,2]
[359937912,1746436240175,-500.0,0.00019999,2]
[359937913,1746436240184,-500.0,0.00019999,2]
[359937914,1746436240193,-500.0,0.00019999,2]
[359937915,1746436240203,-500.0,0.00019999,2]
[359937916,1746436240212,-500.0,0.00019999,2]
[359937917,1746436240221,-393.6863989,0.0002,2]
[359937918,1746436240230,-10831.47819207,0.0002,2]
[359937919,1746436240242,-660.0,0.0002,2]
[359937920,1746436240253,-558.89350208,0.0002,2]
[359937921,1746436240265,-474.689215,0.0002,2]
[359937922,1746436240280,-1829.58238762,0.0002,2]
[359937923,1746436240292,-307.50339316,0.0002,2]
[359937924,1746436240303,-626.90084593,0.0002,2]
[359937925,1746436240314,-356.13269996,0.0002,2]
[359937932,1746436242576,-2714.46218219,0.0002,2]
[359937943,1746436245550,-450.0,0.00019999,2]
[359937944,1746436245560,-5055.3,0.0002,2]
[359937945,1746436245656,-318.8803487,0.0002,2]
[359937946,1746436245668,-310.0594,0.0002,2]
[359937949,1746436246002,-3522.29219017,0.0002,2]
[359937952,1746436246015,-5053.72517932,0.0002,2]
[359937955,1746436246026,-1554.76,0.0002,2]
[359937965,1746436249588,210.31,0.00017984,2]
[359937966,1746436496023,250.0,0.0003,120]
[359937967,1746436518625,250.0,0.0003,120]
[359937968,1746436532707,329.0,0.0003,120]
[359937970,1746436771671,250.0,0.00017,2]
[359937971,1746436772721,248.26962923,0.00019,2]
[359937972,1746436772743,51.73037077,0.00019,2]
[359937973,1746436838875,250.0,0.0001879,2]
[359937974,1746437190427,1000.0,0.0001878,2]
[359937975,1746437224141,200.0,0.00018769,2]
[359937976,1746437247241,210.51,0.00019316,2]
[359937977,1746437289408,21808.2416527,0.00028,120]
[359937980,1746437324735,152.01,0.00018767,2]
[359937981,1746437324931,152.01,0.00018786,2]
[359937982,1746437325182,152.01,0.00018805,2]
[359937983,1746437325406,152.01,0.00018824,2]
[359937984,1746437326403,152.01,0.00018842,2]
[359937985,1746437326598,152.01,0.00018861,2]
[359937988,1746437328729,801.74,0.00018767,2]
[359937995,1746437353089,200.0,0.00018767,2]
[359938077,1746437426839,150.143,0.00019,2]
[359938083,1746437431706,-151.0,0.0001959,2]
[359938085,1746437431716,-166.66,0.0001959,2]
[359938087,1746437431725,-133.64,0.0001968,2]
[359938091,1746437431759,-318.60023368,0.0001968,2]
[359938092,1746437431770,-1366.19797176,0.0001968,2]
[359938093,1746437431779,-207.4,0.00019694,2]
[359938094,1746437431788,-654.86765514,0.00019695,2]
[359938095,1746437431797,-300.0,0.00019705,2]
[359938096,1746437431806,-1081.73288302,0.00019705,2]
[359938097,1746437431817,-118.26711698,0.00019705,2]
[359938098,1746437431826,-14848.57394845,0.00019706,2]
[359938099,1746437431834,-455.82235807,0.00019706,2]
[359938100,1746437431853,-2418.287589,0.00019706,2]
[359938101,1746437431867,-962.8861052,0.00019706,2]
[359938102,1746437431923,-8663.00394773,0.00019706,2]
[359938103,1746437431933,-1875.15712527,0.00019715,2]
[359938104,1746437432030,-4746.3416,0.00019715,2]
[359938376,1746437437802,-1122.3468552,0.00019715,2]
[359938377,1746437437814,-4756.15441953,0.00019715,2]
[359938378,1746437437823,-654.86765512,0.00019718,2]
[359938379,1746437437832,-866.06278121,0.00019724,2]
[359938380,1746437437855,-9937.73261524,0.00019724,2]
[359938381,1746437437867,-1696.20460355,0.00019724,2]
[359938382,1746437437876,-7944.99539645,0.00019733,2]
[359938520,1746437441959,-0.00914252,0.00019733,2]
[359938521,1746437441971,-474.589115,0.00019733,2]
[359938522,1746437441986,-529.37332801,0.00019733,2]
[359938523,1746437441997,-294.61,0.00019733,2]
[359938524,1746437442008,-3256.42301802,0.00019733,2]
[359938525,1746437442017,-472.005,0.00019738,2]
[359938526,1746437442026,-654.86765512,0.00019741,2]
[359938527,1746437442036,-3676.23432686,0.00019742,2]
[359938545,1746437445720,-1415.79810418,0.00019742,2]
[359938546,1746437445828,-7407.96756896,0.00019742,2]
[359938547,1746437445838,-157.55048229,0.00019746,2]
[359938548,1746437445848,-6691.92500681,0.0001975,2]
[359938549,1746437445858,-150.0,0.0001975,2]
[359938550,1746437445868,-12500.0,0.0001975,2]
[359938551,1746437445877,-12500.0,0.00019759,2]
[359938552,1746437445887,-935.67431035,0.00019762,2]
[359938553,1746437445897,-654.86765512,0.00019763,2]
[359938554,1746437445907,-12500.0,0.00019768,2]
[359938555,1746437445917,-151.0,0.00019772,2]
[359938556,1746437445927,-668.65185757,0.00019772,2]
[359938557,1746437445937,-500.0,0.00019773,2]
[359938558,1746437445946,-500.0,0.00019773,2]
[359938559,1746437445956,-500.0,0.00019773,2]
[359938560,1746437445965,-151.0,0.00019773,2]
[359938561,1746437445975,-151.0,0.00019773,2]
[359938562,1746437445985,-151.0,0.00019773,2]
[359938563,1746437445994,-151.0,0.00019773,2]
[359938564,1746437446004,-500.0,0.00019776,2]
[359938565,1746437446013,-500.0,0.00019776,2]
[359938566,1746437446022,-500.0,0.00019776,2]
[359938567,1746437446032,-500.0,0.00019776,2]
[359938568,1746437446041,-500.0,0.00019776,2]
[359938570,1746437446051,-500.0,0.00019776,2]
[359938571,1746437446061,-500.0,0.00019776,2]
[359938572,1746437446070,-500.0,0.00019776,2]
[359938573,1746437446080,-500.0,0.00019776,2]
[359938574,1746437446089,-500.0,0.00019776,2]
[359938575,1746437446098,-500.0,0.00019776,2]
[359938576,1746437446108,-500.0,0.00019776,2]
[359938577,1746437446118,-500.0,0.00019776,2]
[359938578,1746437446127,-500.0,0.00019776,2]
[359938579,1746437446136,-426.36346126,0.00019776,2]
[359938580,1746437446146,-500.0,0.00019776,2]
[359938581,1746437446155,-500.0,0.00019776,2]
[359938582,1746437446165,-500.0,0.00019776,2]
[359938583,1746437446174,-500.0,0.00019776,2]
[359938584,1746437446184,-500.0,0.00019776,2]
[359938585,1746437446193,-500.0,0.00019776,2]
[359938586,1746437446203,-500.0,0.00019776,2]
[359938587,1746437446212,-500.0,0.00019776,2]
[359938588,1746437446221,-500.0,0.00019776,2]
[359938589,1746437446231,-500.0,0.00019776,2]
[359938590,1746437446240,-500.0,0.00019776,2]
[359938592,1746437446250,-500.0,0.00019776,2]
[359938593,1746437446260,-500.0,0.00019776,2]
[359938594,1746437446270,-500.0,0.00019776,2]
[359938595,1746437446279,-500.0,0.00019776,2]
[359938596,1746437446290,-500.0,0.00019776,2]
[359938597,1746437446299,-500.0,0.00019776,2]
[359938598,1746437446310,-500.0,0.00019776,2]
[359938599,1746437446319,-500.0,0.00019776,2]
[359938600,1746437446329,-500.0,0.00019776,2]
[359938601,1746437446345,-500.0,0.00019776,2]
[359938602,1746437446355,-500.0,0.00019776,2]
[359938603,1746437446365,-500.0,0.00019776,2]
[359938604,1746437446374,-500.0,0.00019776,2]
[359938605,1746437446384,-500.0,0.00019776,2]
[359938606,1746437446394,-500.0,0.00019776,2]
[359938607,1746437446403,-500.0,0.00019776,2]
[359938608,1746437446413,-500.0,0.00019776,2]
[359938609,1746437446423,-500.0,0.00019776,2]
[359938610,1746437446433,-500.0,0.00019776,2]
[359938611,1746437446443,-500.0,0.00019776,2]
[359938612,1746437446453,-500.0,0.00019776,2]
[359938613,1746437446463,-500.0,0.00019776,2]
[359938614,1746437446475,-500.0,0.00019776,2]
[359938615,1746437446485,-500.0,0.00019776,2]
[359938616,1746437446495,-500.0,0.00019776,2]
[359938617,1746437446505,-500.0,0.00019776,2]
[359938618,1746437446515,-242.63634612,0.00019776,2]
[359938619,1746437446525,-500.0,0.00019776,2]
[359938620,1746437446536,-500.0,0.00019776,2]
[359938621,1746437446547,-500.0,0.00019776,2]
[359938622,1746437446557,-500.0,0.00019776,2]
[359938623,1746437446567,-12500.0,0.00019777,2]
[359938624,1746437446577,-935.67431035,0.00019777,2]
[359938625,1746437446587,-151.0,0.00019782,2]
[359938626,1746437446597,-151.0,0.00019782,2]
[359938627,1746437446606,-157.698754,0.00019785,2]
[359938628,1746437446616,-181.5973,0.00019785,2]
[359938629,1746437446625,-181.5973,0.00019785,2]
[359938630,1746437446635,-151.0,0.00019785,2]
[359938631,1746437446646,-151.0,0.00019785,2]
[359938632,1746437446655,-12500.0,0.00019786,2]
[359938633,1746437446665,-654.86765512,0.00019786,2]
[359938634,1746437446674,-935.67431035,0.00019793,2]
[359938635,1746437446683,-24514.17749026,0.00019794,2]
[359938636,1746437446693,-12500.0,0.00019794,2]
[359938637,1746437446702,-151.0,0.00019802,2]
[359938638,1746437446712,-151.0,0.00019802,2]
[359938639,1746437446721,-12500.0,0.00019803,2]
[359938640,1746437446730,-150.0,0.00019806,2]
[359938641,1746437446739,-450.0,0.00019807,2]
[359938642,1746437446748,-935.67431035,0.00019808,2]
[359938644,1746437446757,-654.86765512,0.00019809,2]
[359938645,1746437446767,-181.5973,0.0001981,2]